[Event "*** Titled Tuesday Blitz"]
[Site "Chess.com"]
[Date "2020.04.21"]
[Round "1"]
[White "tonyq11"]
[Black "Kouzari"]
[Result "0-1"]
[WhiteElo "2239"]
[BlackElo "2590"]
[TimeControl "180+1"]
[EndTime "10:07:49 PDT"]
[Termination "Kouzari won on time"]

1. d4 {[%clk 0:03:00.9]} 1... Nf6 {[%clk 0:01:34.6]} 2. c4 {[%clk 0:02:58.6]}
2... e6 {[%clk 0:01:34.9]} 3. Nc3 {[%clk 0:02:58.6]} 3... c5 {[%clk 0:01:35.8]}
4. d5 {[%clk 0:02:58.5]} 4... exd5 {[%clk 0:01:36.7]} 5. cxd5 {[%clk 0:02:59]}
5... d6 {[%clk 0:01:37.6]} 6. e4 {[%clk 0:02:59.1]} 6... g6 {[%clk 0:01:38.1]}
7. Nf3 {[%clk 0:02:55.2]} 7... Bg7 {[%clk 0:01:38.1]} 8. h3 {[%clk 0:02:55.7]}
8... O-O {[%clk 0:01:37.7]} 9. Bd3 {[%clk 0:02:55.9]} 9... b5 {[%clk 0:01:37.2]}
10. O-O {[%clk 0:02:54.9]} 10... a6 {[%clk 0:01:33.8]} 11. a3 {[%clk 0:02:54.2]}
11... Nbd7 {[%clk 0:01:32.8]} 12. Bf4 {[%clk 0:02:54.1]} 12... c4 {[%clk
0:01:32.4]} 13. Bc2 {[%clk 0:02:53.5]} 13... Nc5 {[%clk 0:01:32.5]} 14. Re1
{[%clk 0:02:43.2]} 14... Bb7 {[%clk 0:01:31.8]} 15. Qd2 {[%clk 0:02:37.8]} 15...
Re8 {[%clk 0:01:29.7]} 16. Rad1 {[%clk 0:02:30.9]} 16... Qb6 {[%clk 0:01:27]}
17. Nd4 {[%clk 0:02:23.8]} 17... Rad8 {[%clk 0:01:17.7]} 18. Kh1 {[%clk
0:02:20.7]} 18... Nfd7 {[%clk 0:01:16.6]} 19. Bg5 {[%clk 0:02:13.5]} 19... Rc8
{[%clk 0:01:09.1]} 20. f4 {[%clk 0:02:09]} 20... Nf6 {[%clk 0:01:01.4]} 21. Bh4
{[%clk 0:02:01.2]} 21... Nh5 {[%clk 0:01:00.7]} 22. Bf2 {[%clk 0:01:57.9]} 22...
Qc7 {[%clk 0:00:54.6]} 23. g4 {[%clk 0:01:54.6]} 23... Nf6 {[%clk 0:00:53.9]}
24. Kh2 {[%clk 0:01:44.5]} 24... Nfd7 {[%clk 0:00:53.8]} 25. Bg3 {[%clk
0:01:41.9]} 25... Qb6 {[%clk 0:00:52.9]} 26. Bf2 {[%clk 0:01:41.3]} 26... Qc7
{[%clk 0:00:52.4]} 27. Bg3 {[%clk 0:01:41.7]} 27... Qb6 {[%clk 0:00:52.5]} 28.
Bf2 {[%clk 0:01:42]} 28... Re7 {[%clk 0:00:53]} 29. Bh4 {[%clk 0:01:27.7]} 29...
Rce8 {[%clk 0:00:45.1]} 30. Re2 {[%clk 0:01:08.3]} 30... Bf6 {[%clk 0:00:42]}
31. Bf2 {[%clk 0:01:02.6]} 31... Qc7 {[%clk 0:00:40.6]} 32. Rde1 {[%clk
0:01:00.4]} 32... h6 {[%clk 0:00:38.6]} 33. Bg3 {[%clk 0:00:59.2]} 33... Bg7
{[%clk 0:00:34.4]} 34. Nf3 {[%clk 0:00:51.1]} 34... Qb6 {[%clk 0:00:33.2]} 35.
e5 {[%clk 0:00:46.5]} 35... dxe5 {[%clk 0:00:33.2]} 36. fxe5 {[%clk 0:00:46.8]}
36... a5 {[%clk 0:00:27.6]} 37. e6 {[%clk 0:00:31.6]} 37... Nf8 {[%clk
0:00:20.3]} 38. exf7+ {[%clk 0:00:27.4]} 38... Kxf7 {[%clk 0:00:21.2]} 39. Qf4+
{[%clk 0:00:23]} 39... Qf6 {[%clk 0:00:17.4]} 40. Qxf6+ {[%clk 0:00:04.6]} 40...
Bxf6 {[%clk 0:00:16.5]} 41. d6 {[%clk 0:00:04.7]} 41... Rxe2+ {[%clk 0:00:15.1]}
42. Rxe2 {[%clk 0:00:04.7]} 42... Rxe2+ {[%clk 0:00:15]} 43. Nxe2 {[%clk
0:00:04.7]} 43... Bxf3 {[%clk 0:00:15.6]} 44. Bf2 {[%clk 0:00:03.5]} 44... Bxe2
{[%clk 0:00:15]} 45. Bxc5 {[%clk 0:00:03.6]} 45... Bd3 {[%clk 0:00:14.8]} 46.
Bd1 {[%clk 0:00:03.2]} 46... Be5+ {[%clk 0:00:15.1]} 47. Kg1 {[%clk 0:00:02.9]}
47... Ne6 {[%clk 0:00:15]} 48. Bb6 {[%clk 0:00:02]} 48... Bd4+ {[%clk
0:00:15.3]} 49. Bxd4 {[%clk 0:00:01.4]} 49... Nxd4 {[%clk 0:00:16.1]} 0-1

[Event "*** Titled Tuesday Blitz"]
[Site "Chess.com"]
[Date "2020.04.21"]
[Round "1"]
[White "Megagigahiper3345"]
[Black "Qingdom"]
[Result "1-0"]
[WhiteElo "2560"]
[BlackElo "2198"]
[TimeControl "180+1"]
[EndTime "10:07:49 PDT"]
[Termination "Megagigahiper3345 won by resignation"]

1. d4 {[%clk 0:02:54.6]} 1... d5 {[%clk 0:02:58.3]} 2. c4 {[%clk 0:02:54.7]}
2... e6 {[%clk 0:02:57.9]} 3. Nc3 {[%clk 0:02:54.8]} 3... c5 {[%clk 0:02:57.5]}
4. cxd5 {[%clk 0:02:54.6]} 4... exd5 {[%clk 0:02:57.6]} 5. e3 {[%clk 0:02:49]}
5... Nc6 {[%clk 0:02:56.4]} 6. Bb5 {[%clk 0:02:49]} 6... Nf6 {[%clk 0:02:54.7]}
7. Nge2 {[%clk 0:02:47.9]} 7... Be7 {[%clk 0:02:53.1]} 8. O-O {[%clk 0:02:46.8]}
8... O-O {[%clk 0:02:52.9]} 9. dxc5 {[%clk 0:02:47.1]} 9... Bxc5 {[%clk
0:02:52.3]} 10. a3 {[%clk 0:02:47.9]} 10... a6 {[%clk 0:02:51.2]} 11. Bd3 {[%clk
0:02:47.2]} 11... Ne5 {[%clk 0:02:46.4]} 12. Bc2 {[%clk 0:02:42.4]} 12... b5
{[%clk 0:02:45.2]} 13. Nd4 {[%clk 0:02:34.1]} 13... Bb7 {[%clk 0:02:44.3]} 14.
b3 {[%clk 0:02:32.6]} 14... Rc8 {[%clk 0:02:39.7]} 15. Bb2 {[%clk 0:02:31.9]}
15... Qb6 {[%clk 0:02:25.7]} 16. Bf5 {[%clk 0:02:28.8]} 16... Rcd8 {[%clk
0:02:23.3]} 17. Nce2 {[%clk 0:02:27.6]} 17... Ne4 {[%clk 0:02:16.4]} 18. f3
{[%clk 0:02:20.1]} 18... Nf6 {[%clk 0:02:15.8]} 19. Rc1 {[%clk 0:02:12.3]} 19...
Rfe8 {[%clk 0:02:13.9]} 20. Qd2 {[%clk 0:02:09.3]} 20... a5 {[%clk 0:02:06.4]}
21. Qc2 {[%clk 0:01:41.9]} 21... Bf8 {[%clk 0:02:05.5]} 22. Qc7 {[%clk
0:01:39.5]} 22... Qa7 {[%clk 0:01:36]} 23. Kh1 {[%clk 0:01:19.9]} 23... Bd6
{[%clk 0:01:23.7]} 24. Qc2 {[%clk 0:01:03.6]} 24... Qb6 {[%clk 0:01:15.8]} 25.
Qd2 {[%clk 0:00:55.3]} 25... a4 {[%clk 0:01:12.6]} 26. f4 {[%clk 0:00:45.5]}
26... Neg4 {[%clk 0:00:58.6]} 27. Rf3 {[%clk 0:00:45.8]} 27... Ne4 {[%clk
0:00:42.6]} 28. Bxe4 {[%clk 0:00:44.9]} 28... dxe4 {[%clk 0:00:42.6]} 29. Rg3
{[%clk 0:00:45.3]} 29... Nf6 {[%clk 0:00:40.7]} 30. b4 {[%clk 0:00:40.4]} 30...
Bf8 {[%clk 0:00:38.6]} 31. Rg5 {[%clk 0:00:34.6]} 31... Bd5 {[%clk 0:00:36.7]}
32. Ng3 {[%clk 0:00:31.2]} 32... Bc4 {[%clk 0:00:36.1]} 33. Ngf5 {[%clk
0:00:29.6]} 33... g6 {[%clk 0:00:35.2]} 34. Qf2 {[%clk 0:00:26.3]} 34... Kh8
{[%clk 0:00:21]} 35. Qh4 {[%clk 0:00:23.8]} 35... gxf5 {[%clk 0:00:19.4]} 36.
Nxf5 {[%clk 0:00:19.2]} 36... Rd5 {[%clk 0:00:17.6]} 37. Bxf6+ {[%clk
0:00:15.2]} 37... Qxf6 {[%clk 0:00:16.8]} 38. Rg8+ {[%clk 0:00:15.9]} 38... Kxg8
{[%clk 0:00:16.7]} 39. Qxf6 {[%clk 0:00:16.6]} 39... Red8 {[%clk 0:00:15.3]} 40.
h3 {[%clk 0:00:14.5]} 40... Rd1+ {[%clk 0:00:14.6]} 41. Rxd1 {[%clk 0:00:14.9]}
41... Rxd1+ {[%clk 0:00:14.5]} 42. Kh2 {[%clk 0:00:15.5]} 42... Rd5 {[%clk
0:00:11.1]} 43. Ne7+ {[%clk 0:00:11.8]} 43... Bxe7 {[%clk 0:00:11.4]} 44. Qxe7
{[%clk 0:00:12.7]} 44... Kg7 {[%clk 0:00:10.9]} 45. f5 {[%clk 0:00:12.9]} 45...
Rxf5 {[%clk 0:00:09.6]} 46. Qxe4 {[%clk 0:00:13.1]} 46... Kg6 {[%clk 0:00:08.2]}
47. g4 {[%clk 0:00:12.6]} 47... Be6 {[%clk 0:00:07.1]} 48. gxf5+ {[%clk
0:00:13.2]} 48... Bxf5 {[%clk 0:00:07.7]} 49. Qc6+ {[%clk 0:00:13.9]} 49... f6
{[%clk 0:00:07.1]} 50. Qxb5 {[%clk 0:00:14.6]} 50... Bc2 {[%clk 0:00:06.9]} 51.
Qe8+ {[%clk 0:00:14.8]} 51... Kg7 {[%clk 0:00:06.5]} 52. b5 {[%clk 0:00:15.7]}
52... Be4 {[%clk 0:00:05.9]} 53. Qxe4 {[%clk 0:00:15.6]} 1-0

[Event "*** Titled Tuesday Blitz"]
[Site "Chess.com"]
[Date "2020.04.21"]
[Round "1"]
[White "Vice64"]
[Black "Angelos_Zonarios"]
[Result "1-0"]
[WhiteElo "2516"]
[BlackElo "2107"]
[TimeControl "180+1"]
[EndTime "10:07:51 PDT"]
[Termination "Vice64 won on time"]

1. e4 {[%clk 0:03:00.7]} 1... c5 {[%clk 0:02:58.1]} 2. Nf3 {[%clk 0:03:00]} 2...
d6 {[%clk 0:02:56.7]} 3. Bb5+ {[%clk 0:02:59]} 3... Nd7 {[%clk 0:02:55.1]} 4. c3
{[%clk 0:02:57.8]} 4... Nf6 {[%clk 0:02:51.3]} 5. Qe2 {[%clk 0:02:57.9]} 5... a6
{[%clk 0:02:50.9]} 6. Ba4 {[%clk 0:02:58]} 6... b5 {[%clk 0:02:49.2]} 7. Bc2
{[%clk 0:02:58]} 7... e5 {[%clk 0:02:49]} 8. d4 {[%clk 0:02:56.7]} 8... Be7
{[%clk 0:02:46.8]} 9. O-O {[%clk 0:02:55.3]} 9... Qc7 {[%clk 0:02:45.8]} 10. a4
{[%clk 0:02:55.2]} 10... Rb8 {[%clk 0:02:44.3]} 11. Na3 {[%clk 0:02:49.2]} 11...
c4 {[%clk 0:02:30.7]} 12. Bd2 {[%clk 0:02:35.1]} 12... O-O {[%clk 0:02:29.3]}
13. b3 {[%clk 0:02:33.7]} 13... cxb3 {[%clk 0:02:22.8]} 14. Bxb3 {[%clk
0:02:34.6]} 14... exd4 {[%clk 0:02:14.7]} 15. cxd4 {[%clk 0:02:32.4]} 15... b4
{[%clk 0:02:12.5]} 16. Nc2 {[%clk 0:02:24.6]} 16... d5 {[%clk 0:02:12.5]} 17.
exd5 {[%clk 0:02:21.7]} 17... Re8 {[%clk 0:02:05.1]} 18. Ne3 {[%clk 0:02:21]}
18... Bf8 {[%clk 0:01:54.2]} 19. Rac1 {[%clk 0:02:19.4]} 19... Qb7 {[%clk
0:01:52.7]} 20. Qc4 {[%clk 0:02:09.8]} 20... Nb6 {[%clk 0:01:46.8]} 21. Qc6
{[%clk 0:02:09.9]} 21... Rd8 {[%clk 0:01:25.9]} 22. Ne5 {[%clk 0:01:58.6]} 22...
Nbxd5 {[%clk 0:01:19.9]} 23. Nxd5 {[%clk 0:01:53.6]} 23... Nxd5 {[%clk 0:01:19]}
24. Bg5 {[%clk 0:01:42.7]} 24... f6 {[%clk 0:01:13.6]} 25. Bf4 {[%clk
0:01:31.7]} 25... fxe5 {[%clk 0:01:09.5]} 26. Bxe5 {[%clk 0:01:22.8]} 26... Qxc6
{[%clk 0:01:04.4]} 27. Rxc6 {[%clk 0:01:23.7]} 27... Ra8 {[%clk 0:01:03.5]} 28.
Rfc1 {[%clk 0:01:18.2]} 28... Bf5 {[%clk 0:00:48.9]} 29. f3 {[%clk 0:01:12.1]}
29... Kh8 {[%clk 0:00:46.9]} 30. g4 {[%clk 0:01:12.3]} 30... Bg6 {[%clk
0:00:46.4]} 31. f4 {[%clk 0:01:09.5]} 31... Nc3 {[%clk 0:00:43.6]} 32. Re1
{[%clk 0:01:06.4]} 32... Be8 {[%clk 0:00:39.5]} 33. Rb6 {[%clk 0:00:58]} 33...
Nxa4 {[%clk 0:00:38.8]} 34. Rb7 {[%clk 0:00:57.3]} 34... Nc3 {[%clk 0:00:34.9]}
35. h4 {[%clk 0:00:50]} 35... Bc6 {[%clk 0:00:34.9]} 36. Rf7 {[%clk 0:00:46.7]}
36... Bd5 {[%clk 0:00:34.1]} 37. Bxd5 {[%clk 0:00:47]} 37... Nxd5 {[%clk
0:00:34.4]} 38. h5 {[%clk 0:00:47.4]} 38... h6 {[%clk 0:00:34.1]} 39. g5 {[%clk
0:00:46.5]} 39... Kg8 {[%clk 0:00:34.2]} 40. Rb7 {[%clk 0:00:43.7]} 40... a5
{[%clk 0:00:29.7]} 41. gxh6 {[%clk 0:00:43.9]} 41... gxh6 {[%clk 0:00:29.6]} 42.
Kh2 {[%clk 0:00:43.4]} 42... Ne7 {[%clk 0:00:25.5]} 43. Bf6 {[%clk 0:00:35]}
43... Nf5 {[%clk 0:00:22.7]} 44. Rg1+ {[%clk 0:00:33]} 44... Ng7 {[%clk
0:00:22.2]} 45. Bxg7 {[%clk 0:00:32.7]} 45... Bxg7 {[%clk 0:00:22.9]} 46. Rgxg7+
{[%clk 0:00:31.7]} 46... Kf8 {[%clk 0:00:23.5]} 47. Rh7 {[%clk 0:00:31.1]} 47...
Kg8 {[%clk 0:00:24]} 48. Rhg7+ {[%clk 0:00:24.8]} 48... Kf8 {[%clk 0:00:24.1]}
49. f5 {[%clk 0:00:24.1]} 49... b3 {[%clk 0:00:20.3]} 50. Rh7 {[%clk 0:00:22.1]}
50... Kg8 {[%clk 0:00:20.1]} 51. f6 {[%clk 0:00:22.6]} 1-0

[Event "*** Titled Tuesday Blitz"]
[Site "Chess.com"]
[Date "2020.04.21"]
[Round "1"]
[White "Jungle_Jaguar"]
[Black "abubakrtagelsir"]
[Result "1-0"]
[WhiteElo "2661"]
[BlackElo "2335"]
[TimeControl "180+1"]
[EndTime "10:07:53 PDT"]
[Termination "Jungle_Jaguar won on time"]

1. e4 {[%clk 0:02:59.7]} 1... d6 {[%clk 0:02:59.5]} 2. d4 {[%clk 0:02:58.3]}
2... Nf6 {[%clk 0:02:59]} 3. Nc3 {[%clk 0:02:57.8]} 3... g6 {[%clk 0:02:58.8]}
4. Nf3 {[%clk 0:02:53.4]} 4... Bg7 {[%clk 0:02:58.4]} 5. Be3 {[%clk 0:02:53.4]}
5... c6 {[%clk 0:02:55.1]} 6. Qd2 {[%clk 0:02:53.2]} 6... b5 {[%clk 0:02:54.8]}
7. a3 {[%clk 0:02:51.2]} 7... O-O {[%clk 0:02:53.6]} 8. Bh6 {[%clk 0:02:51.1]}
8... Nbd7 {[%clk 0:02:53.3]} 9. h4 {[%clk 0:02:48.4]} 9... e5 {[%clk 0:02:53.1]}
10. O-O-O {[%clk 0:02:46.1]} 10... Qe7 {[%clk 0:02:48.2]} 11. dxe5 {[%clk
0:02:35.8]} 11... Nxe5 {[%clk 0:02:47.3]} 12. Bxg7 {[%clk 0:02:32.9]} 12... Nxf3
{[%clk 0:02:42.5]} 13. gxf3 {[%clk 0:02:31.7]} 13... Kxg7 {[%clk 0:02:40.8]} 14.
Qxd6 {[%clk 0:02:28.5]} 14... Qxd6 {[%clk 0:02:40]} 15. Rxd6 {[%clk 0:02:29.4]}
15... Bb7 {[%clk 0:02:39.1]} 16. e5 {[%clk 0:02:26.1]} 16... Nh5 {[%clk
0:02:34.3]} 17. Rd7 {[%clk 0:02:11.6]} 17... Bc8 {[%clk 0:02:14.2]} 18. Rc7
{[%clk 0:02:10.5]} 18... a6 {[%clk 0:02:13.6]} 19. Bd3 {[%clk 0:02:02.5]} 19...
Re8 {[%clk 0:01:56.3]} 20. Be4 {[%clk 0:01:56.7]} 20... Rxe5 {[%clk 0:01:52.2]}
21. Bxc6 {[%clk 0:01:56.1]} 21... Rb8 {[%clk 0:01:51.4]} 22. Ne4 {[%clk
0:01:54.6]} 22... h6 {[%clk 0:01:31]} 23. Rd1 {[%clk 0:01:45.3]} 23... Nf4
{[%clk 0:01:27.5]} 24. Bd7 {[%clk 0:01:38.1]} 24... Bb7 {[%clk 0:01:14.8]} 25.
Bc6 {[%clk 0:01:21]} 25... Bxc6 {[%clk 0:01:00.4]} 26. Rxc6 {[%clk 0:01:21.9]}
26... a5 {[%clk 0:01:00.1]} 27. Rd7 {[%clk 0:01:18.9]} 27... Rf8 {[%clk
0:00:35.4]} 28. Rcc7 {[%clk 0:01:13.7]} 28... Ne6 {[%clk 0:00:29.3]} 29. Ra7
{[%clk 0:01:12.8]} 29... Rf5 {[%clk 0:00:22.2]} 30. Rxa5 {[%clk 0:01:05.1]}
30... Rxf3 {[%clk 0:00:19.5]} 31. Rxb5 {[%clk 0:01:05]} 31... Nf4 {[%clk
0:00:17.5]} 32. a4 {[%clk 0:00:51.2]} 32... Re8 {[%clk 0:00:17.3]} 33. Rb4
{[%clk 0:00:38]} 33... Ne6 {[%clk 0:00:08.3]} 34. Kb1 {[%clk 0:00:34]} 34... Rh3
{[%clk 0:00:06.8]} 35. a5 {[%clk 0:00:32.2]} 35... Ra8 {[%clk 0:00:05.3]} 36.
Nd6 {[%clk 0:00:29.2]} 36... Rf3 {[%clk 0:00:03.6]} 37. Rb5 {[%clk 0:00:22.9]}
37... Rxf2 {[%clk 0:00:02.9]} 38. c3 {[%clk 0:00:23.1]} 38... Rf1+ {[%clk
0:00:01.9]} 39. Ka2 {[%clk 0:00:23.6]} 39... Nf8 {[%clk 0:00:01.4]} 40. Re7
{[%clk 0:00:21.7]} 1-0

[Event "*** Titled Tuesday Blitz"]
[Site "Chess.com"]
[Date "2020.04.21"]
[Round "1"]
[White "SHIVACalypso"]
[Black "Joshukid"]
[Result "0-1"]
[WhiteElo "2217"]
[BlackElo "2576"]
[TimeControl "180+1"]
[EndTime "10:07:53 PDT"]
[Termination "Joshukid won by resignation"]

1. Nf3 {[%clk 0:03:00.9]} 1... c5 {[%clk 0:02:59.2]} 2. c4 {[%clk 0:03:00.4]}
2... Nc6 {[%clk 0:02:55.4]} 3. g3 {[%clk 0:03:00.8]} 3... g6 {[%clk 0:02:35.3]}
4. Bg2 {[%clk 0:03:00.7]} 4... Bg7 {[%clk 0:02:35.9]} 5. O-O {[%clk 0:03:01.1]}
5... e6 {[%clk 0:02:36.3]} 6. Nc3 {[%clk 0:03:00.4]} 6... Nge7 {[%clk
0:02:36.5]} 7. d3 {[%clk 0:02:58.1]} 7... O-O {[%clk 0:02:36.4]} 8. e4 {[%clk
0:02:57.4]} 8... d5 {[%clk 0:02:33.9]} 9. cxd5 {[%clk 0:02:58.3]} 9... exd5
{[%clk 0:02:34.5]} 10. Bd2 {[%clk 0:02:50.4]} 10... Bg4 {[%clk 0:02:22.9]} 11.
h3 {[%clk 0:02:39.2]} 11... dxe4 {[%clk 0:02:17.6]} 12. dxe4 {[%clk 0:02:36]}
12... Be6 {[%clk 0:02:13]} 13. Be3 {[%clk 0:02:31.2]} 13... Nd4 {[%clk
0:02:07.7]} 14. Ng5 {[%clk 0:01:54.2]} 14... Bc4 {[%clk 0:01:59.9]} 15. Re1
{[%clk 0:01:48.7]} 15... Qa5 {[%clk 0:01:42.2]} 16. Nf3 {[%clk 0:00:58.1]} 16...
Rad8 {[%clk 0:01:33.9]} 17. Bxd4 {[%clk 0:00:56.8]} 17... cxd4 {[%clk
0:01:33.9]} 18. Qa4 {[%clk 0:00:44.1]} 18... Qxa4 {[%clk 0:01:05.3]} 19. Nxa4
{[%clk 0:00:45]} 19... d3 {[%clk 0:01:06]} 20. Nd2 {[%clk 0:00:37]} 20... b5
{[%clk 0:01:00.1]} 21. Nc3 {[%clk 0:00:34.1]} 21... Be6 {[%clk 0:00:49.9]} 22.
Rac1 {[%clk 0:00:32.9]} 22... b4 {[%clk 0:00:42.3]} 23. Na4 {[%clk 0:00:29.7]}
23... Bxa2 {[%clk 0:00:42.4]} 24. Bf1 {[%clk 0:00:27.4]} 24... Be6 {[%clk
0:00:35.5]} 25. Re3 {[%clk 0:00:14.2]} 25... Bh6 {[%clk 0:00:30.3]} 26. f4
{[%clk 0:00:14.5]} 26... Bg7 {[%clk 0:00:30.9]} 27. Bxd3 {[%clk 0:00:12]} 27...
Bd4 {[%clk 0:00:30]} 28. Kf2 {[%clk 0:00:11.3]} 28... Bxe3+ {[%clk 0:00:28.6]}
29. Kxe3 {[%clk 0:00:12.2]} 29... Bxh3 {[%clk 0:00:26.3]} 30. Nc5 {[%clk
0:00:09.2]} 30... Rfe8 {[%clk 0:00:26.4]} 31. Nc4 {[%clk 0:00:08.7]} 31... Nf5+
{[%clk 0:00:23.8]} 32. Kf2 {[%clk 0:00:06.4]} 32... Nd6 {[%clk 0:00:19.4]} 33.
Ne5 {[%clk 0:00:04.5]} 33... Be6 {[%clk 0:00:18.1]} 34. Nxe6 {[%clk 0:00:03.8]}
34... Rxe6 {[%clk 0:00:18.4]} 35. Bb1 {[%clk 0:00:03.8]} 35... Rde8 {[%clk
0:00:15.4]} 36. Rd1 {[%clk 0:00:04]} 36... f6 {[%clk 0:00:15.5]} 37. Ba2 {[%clk
0:00:04.3]} 37... fxe5 {[%clk 0:00:15]} 38. Bxe6+ {[%clk 0:00:04.9]} 38... Rxe6
{[%clk 0:00:14.7]} 39. f5 {[%clk 0:00:05.7]} 39... gxf5 {[%clk 0:00:14.7]} 40.
exf5 {[%clk 0:00:06.6]} 40... Nxf5 {[%clk 0:00:15]} 41. Rd8+ {[%clk 0:00:06.9]}
41... Kf7 {[%clk 0:00:14.6]} 42. Rd7+ {[%clk 0:00:07.8]} 42... Re7 {[%clk
0:00:15]} 43. Rd5 {[%clk 0:00:08.2]} 43... Ke6 {[%clk 0:00:12.8]} 44. Rb5 {[%clk
0:00:08.3]} 44... Nd6 {[%clk 0:00:12.5]} 45. Rxb4 {[%clk 0:00:08.4]} 45... Rb7
{[%clk 0:00:12.7]} 46. Ra4 {[%clk 0:00:07.8]} 46... Rxb2+ {[%clk 0:00:11.1]} 47.
Kf3 {[%clk 0:00:08.3]} 47... e4+ {[%clk 0:00:10.5]} 48. Ke3 {[%clk 0:00:07.6]}
48... Rb3+ {[%clk 0:00:10.5]} 49. Kf4 {[%clk 0:00:08]} 49... Rf3+ {[%clk
0:00:10.8]} 50. Kg4 {[%clk 0:00:08.5]} 50... Rf7 {[%clk 0:00:10.7]} 51. Ra6
{[%clk 0:00:07.9]} 51... e3 {[%clk 0:00:10.8]} 0-1

[Event "*** Titled Tuesday Blitz"]
[Site "Chess.com"]
[Date "2020.04.21"]
[Round "1"]
[White "kleopl"]
[Black "NDePinEsPeRG"]
[Result "1/2-1/2"]
[WhiteElo "2461"]
[BlackElo "2868"]
[TimeControl "180+1"]
[EndTime "10:07:54 PDT"]
[Termination "Game drawn by repetition"]

1. c4 {[%clk 0:02:59.7]} 1... Nf6 {[%clk 0:02:59.2]} 2. Nc3 {[%clk 0:02:59.3]}
2... g6 {[%clk 0:02:58.8]} 3. g3 {[%clk 0:02:59.1]} 3... Bg7 {[%clk 0:02:58.5]}
4. Bg2 {[%clk 0:02:59.6]} 4... O-O {[%clk 0:02:58]} 5. e4 {[%clk 0:02:59.7]}
5... e5 {[%clk 0:02:56.3]} 6. Nge2 {[%clk 0:02:59]} 6... d6 {[%clk 0:02:54.4]}
7. d3 {[%clk 0:02:58.9]} 7... c6 {[%clk 0:02:52.5]} 8. O-O {[%clk 0:02:58.4]}
8... a6 {[%clk 0:02:51.7]} 9. h3 {[%clk 0:02:58.4]} 9... b5 {[%clk 0:02:50.8]}
10. b3 {[%clk 0:02:57.3]} 10... Nbd7 {[%clk 0:02:48.5]} 11. Be3 {[%clk
0:02:56.6]} 11... Bb7 {[%clk 0:02:47]} 12. Rc1 {[%clk 0:02:55.6]} 12... Re8
{[%clk 0:02:44.4]} 13. Qd2 {[%clk 0:02:55]} 13... b4 {[%clk 0:02:41.4]} 14. Nd1
{[%clk 0:02:50.4]} 14... a5 {[%clk 0:02:39.5]} 15. f4 {[%clk 0:02:49.3]} 15...
c5 {[%clk 0:02:04.7]} 16. f5 {[%clk 0:02:40.9]} 16... a4 {[%clk 0:02:02.2]} 17.
g4 {[%clk 0:02:39.3]} 17... axb3 {[%clk 0:02:01.7]} 18. axb3 {[%clk 0:02:38.9]}
18... Ra3 {[%clk 0:02:01.2]} 19. g5 {[%clk 0:02:33.8]} 19... Nh5 {[%clk
0:01:59.8]} 20. f6 {[%clk 0:02:30]} 20... Bf8 {[%clk 0:01:57]} 21. Rb1 {[%clk
0:02:28.2]} 21... Nb8 {[%clk 0:01:52.5]} 22. Bf3 {[%clk 0:02:26.3]} 22... Bc8
{[%clk 0:01:51.7]} 23. Kh2 {[%clk 0:02:22]} 23... Nc6 {[%clk 0:01:50.4]} 24.
Bxh5 {[%clk 0:02:19.9]} 24... gxh5 {[%clk 0:01:49.7]} 25. Ng3 {[%clk 0:02:19.7]}
25... Nd4 {[%clk 0:01:46.1]} 26. Bxd4 {[%clk 0:02:16.8]} 26... exd4 {[%clk
0:01:45.2]} 27. Nxh5 {[%clk 0:02:11.7]} 27... Qd7 {[%clk 0:01:43.6]} 28. Rf3
{[%clk 0:02:00.8]} 28... Re5 {[%clk 0:01:41.2]} 29. Nf2 {[%clk 0:01:54.1]} 29...
Qa7 {[%clk 0:01:39]} 30. Ng3 {[%clk 0:01:51.3]} 30... Ra2 {[%clk 0:01:36.1]} 31.
Qc1 {[%clk 0:01:44]} 31... Qa3 {[%clk 0:01:32.7]} 32. Qf4 {[%clk 0:01:14.2]}
32... Rb2 {[%clk 0:01:23.1]} 33. Rxb2 {[%clk 0:01:05.2]} 33... Qxb2 {[%clk
0:01:22.5]} 34. Nf5 {[%clk 0:01:01.6]} 34... Bxf5 {[%clk 0:01:17.3]} 35. exf5
{[%clk 0:01:02.5]} 35... Qxb3 {[%clk 0:01:17.2]} 36. Ng4 {[%clk 0:00:56.2]}
36... Re2+ {[%clk 0:01:15.5]} 37. Kg3 {[%clk 0:00:53.3]} 37... Qd1 {[%clk
0:01:14.3]} 38. Kh4 {[%clk 0:00:42.8]} 38... b3 {[%clk 0:01:09.2]} 39. Nh6+
{[%clk 0:00:38.3]} 39... Bxh6 {[%clk 0:01:07.4]} 40. gxh6 {[%clk 0:00:39.2]}
40... Qe1+ {[%clk 0:00:58.6]} 41. Rg3+ {[%clk 0:00:37.4]} 41... Kf8 {[%clk
0:00:46.3]} 42. Qxd6+ {[%clk 0:00:34.8]} 42... Ke8 {[%clk 0:00:46]} 43. Kg4
{[%clk 0:00:19.2]} 43... Re3 {[%clk 0:00:33.2]} 44. Rxe3+ {[%clk 0:00:12.3]}
44... Qxe3 {[%clk 0:00:32.3]} 45. Qb8+ {[%clk 0:00:12.5]} 45... Kd7 {[%clk
0:00:31.1]} 46. Qb7+ {[%clk 0:00:12.8]} 46... Kd6 {[%clk 0:00:30.6]} 47. Qd5+
{[%clk 0:00:12.9]} 47... Kc7 {[%clk 0:00:29]} 48. Qxc5+ {[%clk 0:00:13.1]} 48...
Kb7 {[%clk 0:00:29]} 49. Qb5+ {[%clk 0:00:13.3]} 49... Ka7 {[%clk 0:00:28.9]}
50. Qxb3 {[%clk 0:00:13.3]} 50... Qe2+ {[%clk 0:00:26.1]} 51. Kg3 {[%clk
0:00:13.2]} 51... Qe3+ {[%clk 0:00:25.2]} 52. Kg2 {[%clk 0:00:13.5]} 52... Qe2+
{[%clk 0:00:25.3]} 53. Kg1 {[%clk 0:00:12.7]} 53... Qe1+ {[%clk 0:00:25.2]} 54.
Kg2 {[%clk 0:00:13.1]} 54... Qe2+ {[%clk 0:00:25.2]} 55. Kg1 {[%clk 0:00:13.4]}
55... Qe1+ {[%clk 0:00:24.4]} 56. Kg2 {[%clk 0:00:13.8]} 56... Qe2+ {[%clk
0:00:24.6]} 1/2-1/2